fUSD/lending_fUSD_20260624
["ID","MTS","AMOUNT","RATE_DAILY","PERIOD"]
[426262654,1782230426000,-1127.11068331,7.918e-05,2]
[426262655,1782230427000,2500.0,0.00023,120]
[426262656,1782230444000,-894.03,7.918e-05,2]
[426262657,1782230459000,-894.03,7.918e-05,2]
[426262659,1782230475000,-500.0,7.917e-05,2]
[426262661,1782230528000,-500.0,7.917e-05,2]
[426262662,1782230623000,2500.0,0.00022,30]
[426262667,1782230788000,-500.0,7.913e-05,2]
[426262669,1782230805000,-500.0,7.913e-05,2]
[426262671,1782230842000,-212.3816094,7.912e-05,2]
[426262675,1782230860000,-274.99308002,7.912e-05,2]
[426262676,1782230895000,-200.0,7.576e-05,2]
[426262677,1782230911000,-500.0,7.912e-05,2]
[426262678,1782230951000,-542.49515602,7.911e-05,2]
[426262679,1782230966000,-500.0,7.911e-05,2]
[426262680,1782231004000,-500.0,7.911e-05,2]
[426262683,1782231017000,-500.0,7.911e-05,2]
[426262682,1782231017000,-500.0,7.911e-05,2]
[426262681,1782231017000,-500.0,7.911e-05,2]
[426262687,1782231018000,-500.0,7.911e-05,2]
[426262684,1782231018000,-500.0,7.911e-05,2]
[426262685,1782231018000,-500.0,7.911e-05,2]
[426262686,1782231018000,-500.0,7.911e-05,2]
[426262689,1782231018000,-444.24143521,7.911e-05,2]
[426262688,1782231018000,-55.75856479,7.911e-05,2]
[426262691,1782231018000,-500.0,7.911e-05,2]
[426262692,1782231018000,-500.0,7.911e-05,2]
[426262693,1782231018000,-500.0,7.911e-05,2]
[426262694,1782231018000,-270.44057098,7.911e-05,2]
[426262695,1782231018000,-426.81355821,7.911e-05,2]
[426262690,1782231018000,-500.0,7.911e-05,2]
[426262697,1782231020000,-426.81355821,7.911e-05,2]
[426262696,1782231020000,-73.18644179,7.911e-05,2]
[426262710,1782231031000,-500.0,7.911e-05,2]
[426262711,1782231031000,-500.0,7.911e-05,2]
[426262708,1782231031000,-500.0,7.911e-05,2]
[426262704,1782231031000,-400.50535498,7.911e-05,2]
[426262707,1782231031000,-156.84362013,7.911e-05,2]
[426262701,1782231031000,-500.0,7.911e-05,2]
[426262705,1782231031000,-500.0,7.911e-05,2]
[426262700,1782231031000,-73.18644179,7.911e-05,2]
[426262706,1782231031000,-343.15637987,7.911e-05,2]
[426262702,1782231031000,-500.0,7.911e-05,2]
[426262699,1782231031000,-150.0,7.911e-05,2]
[426262698,1782231031000,-179.17169087,7.911e-05,2]
[426262709,1782231031000,-500.0,7.911e-05,2]
[426262715,1782231031000,-500.0,7.911e-05,2]
[426262703,1782231031000,-99.49464502,7.911e-05,2]
[426262714,1782231031000,-500.0,7.911e-05,2]
[426262718,1782231031000,-149.58048161,7.911e-05,2]
[426262712,1782231031000,-500.0,7.911e-05,2]
[426262716,1782231031000,-500.0,7.911e-05,2]
[426262731,1782231031000,-87.16724266,7.911e-05,2]
[426262726,1782231031000,-268.63892266,7.911e-05,2]
[426262730,1782231031000,-362.83275734,7.911e-05,2]
[426262728,1782231031000,-500.0,7.911e-05,2]
[426262727,1782231031000,-231.36107734,7.911e-05,2]
[426262725,1782231031000,-424.40437016,7.911e-05,2]
[426262729,1782231031000,-137.16724266,7.911e-05,2]
[426262722,1782231031000,-500.0,7.911e-05,2]
[426262721,1782231031000,-500.0,7.911e-05,2]
[426262720,1782231031000,-7.12659325,7.911e-05,2]
[426262719,1782231031000,-343.29292514,7.911e-05,2]
[426262717,1782231031000,-500.0,7.911e-05,2]
[426262713,1782231031000,-500.0,7.911e-05,2]
[426262723,1782231031000,-75.59562984,7.911e-05,2]
[426262748,1782231032000,-500.0,7.911e-05,2]
[426262751,1782231032000,-500.0,7.911e-05,2]
[426262761,1782231032000,-500.0,7.911e-05,2]
[426262755,1782231032000,-500.0,7.911e-05,2]
[426262754,1782231032000,-500.0,7.911e-05,2]
[426262752,1782231032000,-500.0,7.911e-05,2]
[426262753,1782231032000,-377.0440571,7.911e-05,2]
[426262750,1782231032000,-500.0,7.911e-05,2]
[426262747,1782231032000,-500.0,7.911e-05,2]
[426262740,1782231032000,-500.0,7.911e-05,2]
[426262742,1782231032000,-500.0,7.911e-05,2]
[426262744,1782231032000,-500.0,7.911e-05,2]
[426262735,1782231032000,-500.0,7.911e-05,2]
[426262746,1782231032000,-500.0,7.911e-05,2]
[426262738,1782231032000,-500.0,7.911e-05,2]
[426262745,1782231032000,-500.0,7.911e-05,2]
[426262733,1782231032000,-500.0,7.911e-05,2]
[426262756,1782231032000,-500.0,7.911e-05,2]
[426262749,1782231032000,-500.0,7.911e-05,2]
[426262757,1782231032000,-500.0,7.911e-05,2]
[426262732,1782231032000,-412.83275734,7.911e-05,2]
[426262759,1782231032000,-500.0,7.911e-05,2]
[426262778,1782231032000,-246474.12974594,7.976e-05,2]
[426262780,1782231032000,-13978.86332071,7.976e-05,2]
[426262776,1782231032000,-260.52290791,7.952e-05,2]
[426262777,1782231032000,-16014.0577,7.976e-05,2]
[426262775,1782231032000,-500.0,7.952e-05,2]
[426262771,1782231032000,-156.798,7.914e-05,2]
[426262770,1782231032000,-3391.631,7.914e-05,2]
[426262767,1782231032000,-500.0,7.911e-05,2]
[426262772,1782231032000,-250.0,7.914e-05,2]
[426262768,1782231032000,-150.0,7.911e-05,2]
[426262769,1782231032000,-250.0,7.912e-05,2]
[426262764,1782231032000,-500.0,7.911e-05,2]
[426262765,1782231032000,-500.0,7.911e-05,2]
[426262766,1782231032000,-500.0,7.911e-05,2]
[426262762,1782231032000,-500.0,7.911e-05,2]
[426262774,1782231032000,-500.0,7.952e-05,2]
[426262773,1782231032000,-2226.22931669,7.918e-05,2]
[426262763,1782231032000,-400.0,7.911e-05,2]
[426262758,1782231032000,-500.0,7.911e-05,2]
[426262760,1782231032000,-500.0,7.911e-05,2]
[426262779,1782231032000,-2579.8615504,7.976e-05,2]
[426262791,1782231037000,-5578.76213675,7.976e-05,2]
[426262790,1782231037000,-216.39158367,7.911e-05,2]
[426262793,1782231038000,-2074.80986574,7.976e-05,2]
[426262792,1782231038000,-2334.91,7.976e-05,2]
[426262829,1782231040000,-1387.17015587,7.976e-05,2]
[426262800,1782231040000,-3654.84871444,7.976e-05,2]
[426262851,1782231042000,-2007.10144202,7.976e-05,2]
[426262852,1782231043000,-5242.30925365,7.976e-05,2]
[426262859,1782231044000,-457.30012863,7.976e-05,2]
[426262905,1782231058000,-928.81147831,7.976e-05,2]
[426262903,1782231058000,-547.26843466,7.976e-05,2]
[426262904,1782231058000,-136856.21142771,7.976e-05,2]
[426262902,1782231058000,-6335.17966319,7.976e-05,2]
[426262906,1782231073000,-2129.0,7.976e-05,2]
[426262907,1782231088000,-2129.0,7.976e-05,2]
[426262908,1782231102000,-1784.63,7.976e-05,2]
[426262909,1782231116000,-1784.63,7.976e-05,2]
[426262919,1782231315000,9156.65479519,7.912e-05,7]
[426262918,1782231315000,226.43682957,7.912e-05,7]
[426262920,1782231316000,226.43682957,8.07e-05,7]
[426262924,1782231317000,226.43682957,8.545e-05,7]
[426262923,1782231317000,9156.65479519,8.308e-05,7]
[426262921,1782231317000,9156.65479519,8.07e-05,7]
[426262922,1782231317000,226.43682957,8.308e-05,7]
[426262925,1782231318000,9156.65479519,8.545e-05,7]
[426262926,1782231318000,226.43682957,8.861e-05,7]
[426262927,1782231318000,2301.87894954,8.861e-05,7]
[426262928,1782231319000,6854.77584567,8.861e-05,7]
[426262929,1782231338000,-500.0,7.815e-05,2]
[426262930,1782231340000,-500.0,7.815e-05,2]
[426262931,1782231340000,-500.0,7.815e-05,2]
[426262933,1782231340000,-500.0,7.815e-05,2]
[426262934,1782231340000,-354.59200109,7.815e-05,2]
[426262935,1782231340000,-500.0,7.815e-05,2]
[426262932,1782231340000,-500.0,7.815e-05,2]
[426262939,1782231340000,-500.0,7.815e-05,2]
[426262936,1782231340000,-500.0,7.815e-05,2]
[426262938,1782231340000,-191.32800979,7.815e-05,2]
[426262941,1782231340000,-500.0,7.815e-05,2]
[426262940,1782231340000,-500.0,7.815e-05,2]
[426262942,1782231340000,-500.0,7.815e-05,2]
[426262937,1782231340000,-500.0,7.815e-05,2]
[426262951,1782231341000,-2713.305,7.816e-05,2]
[426262943,1782231341000,-500.0,7.815e-05,2]
[426262945,1782231341000,-500.0,7.815e-05,2]
[426262946,1782231341000,-500.0,7.815e-05,2]
[426262944,1782231341000,-500.0,7.815e-05,2]
[426262948,1782231341000,-500.0,7.815e-05,2]
[426262950,1782231341000,-500.0,7.815e-05,2]
[426262947,1782231341000,-500.0,7.815e-05,2]
[426262952,1782231341000,-156.798,7.816e-05,2]
[426262949,1782231341000,-500.0,7.815e-05,2]
[426262958,1782231341000,-84856.93775658,7.976e-05,2]
[426262956,1782231341000,-6828.6382,7.876e-05,2]
[426262957,1782231341000,-216.39158367,7.912e-05,2]
[426262955,1782231341000,-486.37723464,7.875e-05,2]
[426262954,1782231341000,-162.63221423,7.875e-05,2]
[426262953,1782231341000,-150.0,7.846e-05,2]
[426262959,1782231392000,-1533.73411984,7.965e-05,2]
[426262960,1782231408000,-1266.84064759,7.965e-05,2]
[426262961,1782231425000,-1266.84064759,7.965e-05,2]
[426262963,1782231440000,-920.70264763,7.965e-05,2]
[426262965,1782231456000,-920.70264763,7.965e-05,2]
[426262966,1782231472000,-4836.30296678,7.965e-05,2]
[426262967,1782231489000,-4836.30296678,7.965e-05,2]
[426262968,1782231504000,-340.46406425,7.964e-05,2]
[426262969,1782231556000,-500.0,7.964e-05,2]
[426262970,1782231610000,174.55652767,2e-05,2]
[426262972,1782231758000,-1687.9118215,7.831e-05,2]
[426262973,1782231775000,-736.6181785,7.831e-05,2]
[426262974,1782231781000,-500.0,7.83e-05,2]
[426262976,1782231781000,-500.0,7.83e-05,2]
[426262977,1782231781000,-500.0,7.83e-05,2]
[426262978,1782231781000,-500.0,7.83e-05,2]
[426262975,1782231781000,-606.06263447,7.83e-05,2]
[426262979,1782231781000,-500.0,7.83e-05,2]
[426262980,1782231781000,-500.0,7.83e-05,2]
[426262983,1782231781000,-2229.8,7.892e-05,2]
[426262982,1782231781000,-253.02171262,7.862e-05,2]
[426262988,1782231781000,-150.0,7.964e-05,2]
[426262989,1782231781000,-1611.52043568,7.965e-05,2]
[426262981,1782231781000,-500.0,7.83e-05,2]
[426262986,1782231781000,-1094.05529029,7.962e-05,2]
[426262984,1782231781000,-238.32484498,7.961e-05,2]
[426262987,1782231781000,-150.0,7.964e-05,2]
[426262985,1782231781000,-167.21508196,7.961e-05,2]
[426262990,1782231783000,-10000.0,7.965e-05,2]
[426262991,1782231784000,-10000.0,7.965e-05,2]
[426262992,1782231785000,-10000.0,7.965e-05,2]
[426262993,1782231786000,-10000.0,7.965e-05,2]
[426262994,1782231787000,-10000.0,7.965e-05,2]
[426262996,1782231826000,-1476.92284383,7.816e-05,2]
[426262997,1782231841000,-880.28815617,7.816e-05,2]
[426262998,1782231893000,-429.21,7.788e-05,2]
[426263002,1782231895000,-150.0,7.864e-05,2]
[426263001,1782231895000,-160.0,7.816e-05,2]
[426262999,1782231895000,-162.31,7.788e-05,2]
[426263000,1782231895000,-156.798,7.816e-05,2]
[426263003,1782231895000,-9370.892,7.865e-05,2]
[426263007,1782231896000,-10000.0,7.865e-05,2]
[426263006,1782231896000,-10000.0,7.865e-05,2]
[426263005,1782231896000,-10000.0,7.865e-05,2]
[426263004,1782231896000,-10000.0,7.865e-05,2]
[426263008,1782231897000,-10000.0,7.865e-05,2]
[426263009,1782231898000,-10000.0,7.865e-05,2]
[426263010,1782231899000,-10000.0,7.865e-05,2]
[426263011,1782231900000,-10000.0,7.865e-05,2]
[426263012,1782231901000,-10000.0,7.865e-05,2]
[426263013,1782231902000,-10000.0,7.865e-05,2]
[426263014,1782231903000,-10000.0,7.865e-05,2]
[426263015,1782231904000,-10000.0,7.865e-05,2]
[426263016,1782231905000,-10000.0,7.865e-05,2]
[426263017,1782231906000,-10000.0,7.865e-05,2]
[426263018,1782231907000,-10000.0,7.865e-05,2]
[426263019,1782231908000,-10000.0,7.865e-05,2]
[426263020,1782231909000,-10000.0,7.865e-05,2]
[426263022,1782231910000,-10000.0,7.865e-05,2]
[426263021,1782231910000,-10000.0,7.865e-05,2]
[426263023,1782231911000,-10000.0,7.865e-05,2]
[426263024,1782231912000,-10000.0,7.865e-05,2]
[426263025,1782231913000,-10000.0,7.865e-05,2]
[426263026,1782231914000,-10000.0,7.865e-05,2]
[426263027,1782231915000,-10000.0,7.865e-05,2]
[426263029,1782231916000,-10000.0,7.865e-05,2]
[426263028,1782231916000,-10000.0,7.865e-05,2]
[426263030,1782231917000,-10000.0,7.865e-05,2]
[426263031,1782231918000,-10000.0,7.865e-05,2]
[426263032,1782231946000,-1375.91075183,7.865e-05,2]
[426263033,1782231962000,-500.0,7.83e-05,2]
[426263034,1782232014000,-500.0,7.83e-05,2]
[426263035,1782232068000,-200.0,7.513e-05,2]
[426263036,1782232121000,-200.0,7.48e-05,2]
[426263037,1782232168000,-250.0,7.655e-05,2]
[426263038,1782232168000,-953.42014075,7.668e-05,2]
[426263040,1782232188000,-235.47704956,0.00022785,30]
[426263039,1782232188000,-364.80916648,0.00022747,30]
[426263041,1782232188000,-182.40458322,0.00022884,60]
[426263042,1782232188000,-235.47704956,0.00022915,30]
[426263045,1782232210000,-616.09566933,7.668e-05,2]
[426263046,1782232210000,-3533.96690318,7.668e-05,2]
[426263044,1782232210000,-1192.36690318,7.668e-05,2]
[426263043,1782232210000,-2341.6,7.541e-05,2]
[426263072,1782232232000,-500.0,7.864e-05,2]
[426263066,1782232232000,-500.0,7.864e-05,2]
[426263071,1782232232000,-500.0,7.864e-05,2]
[426263068,1782232232000,-500.0,7.864e-05,2]
[426263069,1782232232000,-500.0,7.864e-05,2]
[426263067,1782232232000,-500.0,7.864e-05,2]
[426263064,1782232232000,-500.0,7.864e-05,2]
[426263063,1782232232000,-500.0,7.864e-05,2]
[426263062,1782232232000,-500.0,7.864e-05,2]
[426263065,1782232232000,-500.0,7.864e-05,2]
[426263056,1782232232000,-470.60268881,7.864e-05,2]
[426263058,1782232232000,-500.0,7.864e-05,2]
[426263070,1782232232000,-500.0,7.864e-05,2]
[426263057,1782232232000,-500.0,7.864e-05,2]
[426263059,1782232232000,-500.0,7.864e-05,2]
[426263060,1782232232000,-500.0,7.864e-05,2]
[426263055,1782232232000,-500.0,7.864e-05,2]
[426263054,1782232232000,-160.0,7.833e-05,2]
[426263053,1782232232000,-150.0,7.821e-05,2]
[426263052,1782232232000,-150.0,7.744e-05,2]
[426263051,1782232232000,-150.0,7.706e-05,2]
[426263050,1782232232000,-32634.30038356,7.668e-05,2]
[426263061,1782232232000,-500.0,7.864e-05,2]
[426263074,1782232232000,-500.0,7.864e-05,2]
[426263083,1782232232000,-500.0,7.864e-05,2]
[426263075,1782232232000,-500.0,7.864e-05,2]
[426263098,1782232232000,-241916.68581299,7.865e-05,2]
[426263097,1782232232000,-150.0,7.864e-05,2]
[426263073,1782232232000,-308.99305191,7.864e-05,2]
[426263095,1782232232000,-500.0,7.864e-05,2]
[426263094,1782232232000,-500.0,7.864e-05,2]
[426263085,1782232232000,-500.0,7.864e-05,2]
[426263090,1782232232000,-500.0,7.864e-05,2]
[426263091,1782232232000,-500.0,7.864e-05,2]
[426263089,1782232232000,-500.0,7.864e-05,2]
[426263092,1782232232000,-500.0,7.864e-05,2]
[426263093,1782232232000,-500.0,7.864e-05,2]
[426263096,1782232232000,-201.83171307,7.864e-05,2]
[426263088,1782232232000,-500.0,7.864e-05,2]
[426263087,1782232232000,-500.0,7.864e-05,2]
[426263078,1782232232000,-500.0,7.864e-05,2]
[426263081,1782232232000,-500.0,7.864e-05,2]
[426263077,1782232232000,-500.0,7.864e-05,2]
[426263076,1782232232000,-500.0,7.864e-05,2]
[426263080,1782232232000,-500.0,7.864e-05,2]
[426263079,1782232232000,-500.0,7.864e-05,2]
[426263084,1782232232000,-500.0,7.864e-05,2]
[426263086,1782232232000,-500.0,7.864e-05,2]
[426263082,1782232232000,-500.0,7.864e-05,2]
[426263106,1782232238000,-500.0,7.864e-05,2]
[426263102,1782232238000,-415.999,7.864e-05,2]
[426263104,1782232238000,-500.0,7.864e-05,2]
[426263103,1782232238000,-84.001,7.864e-05,2]
[426263105,1782232238000,-500.0,7.864e-05,2]
[426263107,1782232238000,-89.06092934,7.864e-05,2]
[426263111,1782232238000,-500.0,7.864e-05,2]
[426263110,1782232238000,-500.0,7.864e-05,2]
[426263109,1782232238000,-500.0,7.864e-05,2]
[426263113,1782232238000,-500.0,7.864e-05,2]
[426263112,1782232238000,-500.0,7.864e-05,2]
[426263114,1782232238000,-453.24394577,7.864e-05,2]
[426263108,1782232238000,-410.93907066,7.864e-05,2]
[426263161,1782232240000,-500.0,7.864e-05,2]
[426263160,1782232240000,-46.75605423,7.864e-05,2]
[426263162,1782232240000,-500.0,7.864e-05,2]
[426263163,1782232240000,-500.0,7.864e-05,2]
[426263165,1782232240000,-450.0,7.864e-05,2]
[426263164,1782232240000,-500.0,7.864e-05,2]
[426263169,1782232240000,-352.03191169,7.865e-05,2]
[426263172,1782232240000,-648.71211241,7.865e-05,2]
[426263168,1782232240000,-500.0,7.864e-05,2]
[426263166,1782232240000,-500.0,7.864e-05,2]
[426263170,1782232240000,-3591.41883005,7.865e-05,2]
[426263167,1782232240000,-500.0,7.864e-05,2]
[426263171,1782232240000,-469.45547152,7.865e-05,2]
[426263182,1782232242000,-1000.0,7.557e-05,2]
[426263183,1782232243000,-2464.09065019,7.865e-05,2]
[426263184,1782232243000,-16113.52830431,7.865e-05,2]
[426263193,1782232246000,-41091.75315032,7.865e-05,2]
[426263194,1782232246000,-7582.48530083,7.865e-05,2]
[426263192,1782232246000,-887.26,7.583e-05,2]
[426263198,1782232330000,-178.04280161,7.864e-05,2]
[426263199,1782232330000,-9321.95719839,7.865e-05,2]
[426263197,1782232330000,-500.0,7.864e-05,2]
[426263200,1782232345000,-971.29331867,7.865e-05,2]
[426263201,1782232346000,-10000.0,7.865e-05,2]
[426263202,1782232366000,-500.0,7.667e-05,2]
[426263203,1782232367000,-10000.0,7.865e-05,2]
[426263209,1782232373000,-8441.89437945,7.865e-05,2]
[426263208,1782232373000,-529.42188217,7.864e-05,2]
[426263205,1782232373000,-500.0,7.864e-05,2]
[426263207,1782232373000,-202.07170619,7.864e-05,2]
[426263206,1782232373000,-176.61203219,7.864e-05,2]
[426263204,1782232373000,-150.0,7.744e-05,2]
[426263210,1782232375000,-500.0,7.864e-05,2]
[426263211,1782232375000,-433.88663875,7.864e-05,2]
[426263212,1782232375000,-500.0,7.864e-05,2]
[426263214,1782232375000,-500.0,7.864e-05,2]
[426263215,1782232375000,-500.0,7.864e-05,2]
[426263216,1782232375000,-500.0,7.864e-05,2]
[426263213,1782232375000,-500.0,7.864e-05,2]
[426263218,1782232376000,-6066.11336125,7.865e-05,2]
[426263217,1782232376000,-500.0,7.864e-05,2]
[426263219,1782232377000,-10000.0,7.865e-05,2]
[426263220,1782232378000,-10000.0,7.865e-05,2]
[426263221,1782232379000,-10000.0,7.865e-05,2]
[426263222,1782232386000,-3482.0,7.865e-05,2]
[426263223,1782232414000,-500.0,7.864e-05,2]
[426263224,1782232467000,-2135.95,7.708e-05,2]
[426263225,1782232520000,-159.122,7.708e-05,2]
[426263226,1782232574000,-467.2968,7.764e-05,2]
[426263227,1782232628000,-150.0,7.764e-05,2]
[426263228,1782232680000,-815.46873693,7.186e-05,2]
[426263229,1782232702000,-739.27106644,7.186e-05,2]
[426263230,1782232718000,-739.27106644,7.186e-05,2]
[426263232,1782232924000,-157.99,7.024e-05,2]
[426263234,1782232969000,-894.03,7.069e-05,2]
[426263235,1782232985000,-238.76869649,0.00023263,120]
[426263236,1782232985000,-375.03,0.00026945,120]
[426263237,1782232985000,-375.03,0.0002763,120]
[426263239,1782232985000,-375.03,0.00028671,120]
[426263238,1782232985000,-375.03,0.00028096,120]
[426263240,1782232985000,-375.03,0.00029247,120]
[426263243,1782232985000,-375.03,0.00029685,120]
[426263241,1782232985000,-152.5298145,0.0002929,120]
[426263245,1782232985000,-571.80596263,0.0003,120]
[426263244,1782232985000,-238.0,0.0003,120]
[426263242,1782232985000,-347.66033672,0.000295,120]
[426263259,1782232986000,-882.16812343,0.00030135,120]
[426263258,1782232986000,-882.16812344,0.00030135,120]
[426263257,1782232986000,-882.16812344,0.00030135,120]
[426263255,1782232986000,-882.16812344,0.00030135,120]
[426263254,1782232986000,-882.16812344,0.00030135,120]
[426263253,1782232986000,-882.16812344,0.00030135,120]
[426263250,1782232986000,-882.16812344,0.00030135,120]
[426263261,1782232986000,-500.0,0.00030136,120]
[426263251,1782232986000,-882.16812344,0.00030135,120]
[426263249,1782232986000,-882.16812344,0.00030135,120]
[426263247,1782232986000,-882.16812344,0.00030135,120]
[426263248,1782232986000,-882.16812344,0.00030135,120]
[426263246,1782232986000,-158.56763982,0.00030053,120]
[426263252,1782232986000,-882.16812344,0.00030135,120]
[426263260,1782232986000,-882.16812343,0.00030135,120]
[426263256,1782232986000,-882.16812344,0.00030135,120]
[426263262,1782232986000,-500.0,0.00030136,120]
[426263263,1782232986000,-182.90924221,0.00030136,120]
[426263276,1782232986000,-502.57520066,0.00030136,120]
[426263277,1782232986000,-500.0,0.00030136,120]
[426263274,1782232986000,-501.27040637,0.00030136,120]
[426263273,1782232986000,-194.27395254,0.00030136,120]
[426263275,1782232986000,-500.0,0.00030136,120]
[426263270,1782232986000,-500.0,0.00030136,120]
[426263272,1782232986000,-500.0,0.00030136,120]
[426263269,1782232986000,-500.0,0.00030136,120]
[426263268,1782232986000,-412.99612764,0.00030136,120]
[426263267,1782232986000,-501.38879038,0.00030136,120]
[426263266,1782232986000,-500.0,0.00030136,120]
[426263265,1782232986000,-500.0,0.00030136,120]
[426263264,1782232986000,-508.97705704,0.00030136,120]
[426263271,1782232986000,-505.56948419,0.00030136,120]
[426263288,1782232987000,-500.0,0.00030136,120]
[426263291,1782232987000,-488.21093609,0.00030136,120]
[426263289,1782232987000,-500.0,0.00030136,120]
[426263285,1782232987000,-500.0,0.00030136,120]
[426263284,1782232987000,-500.0,0.00030136,120]
[426263287,1782232987000,-507.79742205,0.00030136,120]
[426263292,1782232987000,-500.93355217,0.00030136,120]
[426263282,1782232987000,-500.0,0.00030136,120]
[426263283,1782232987000,-500.0,0.00030136,120]
[426263280,1782232987000,-500.0,0.00030136,120]
[426263281,1782232987000,-500.0,0.00030136,120]
[426263279,1782232987000,-500.0,0.00030136,120]
[426263278,1782232987000,-557.0666066,0.00030136,120]
[426263286,1782232987000,-523.96390391,0.00030136,120]
[426263294,1782232987000,-500.0,0.00030136,120]
[426263290,1782232987000,-500.0,0.00030136,120]
[426263295,1782232987000,-500.0,0.00030136,120]
[426263306,1782232987000,-304.62367123,0.00030136,120]
[426263305,1782232987000,-500.0,0.00030136,120]
[426263308,1782232987000,-500.0,0.00030136,120]
[426263307,1782232987000,-500.7640204,0.00030136,120]
[426263304,1782232987000,-500.0,0.00030136,120]
[426263303,1782232987000,-500.0,0.00030136,120]
[426263302,1782232987000,-500.0,0.00030136,120]
[426263293,1782232987000,-500.0,0.00030136,120]
[426263301,1782232987000,-500.0,0.00030136,120]
[426263299,1782232987000,-500.0,0.00030136,120]
[426263298,1782232987000,-468.46473691,0.00030136,120]
[426263296,1782232987000,-500.0,0.00030136,120]
[426263297,1782232987000,-240.82441687,0.00030136,120]
[426263309,1782232987000,-500.0,0.00030136,120]
[426263300,1782232987000,-500.0,0.00030136,120]
[426263321,1782232988000,-500.0,0.00030136,120]
[426263322,1782232988000,-500.0,0.00030136,120]
[426263320,1782232988000,-500.0,0.00030136,120]
[426263319,1782232988000,-500.0,0.00030136,120]
[426263318,1782232988000,-500.0,0.00030136,120]
[426263317,1782232988000,-500.0,0.00030136,120]
[426263312,1782232988000,-500.0,0.00030136,120]
[426263315,1782232988000,-500.0,0.00030136,120]
[426263314,1782232988000,-567.51993118,0.00030136,120]
[426263313,1782232988000,-500.0,0.00030136,120]
[426263311,1782232988000,-500.0,0.00030136,120]
[426263310,1782232988000,-500.0,0.00030136,120]
[426263323,1782232988000,-500.0,0.00030136,120]
[426263316,1782232988000,-498.53828865,0.00030136,120]
[426263324,1782232988000,-500.0,0.00030136,120]
[426263326,1782232988000,-229.80807904,0.00030136,120]
[426263325,1782232988000,-500.0,0.00030136,120]
[426263340,1782232988000,-500.0,0.00030136,120]
[426263338,1782232988000,-325.86487202,0.00030136,120]
[426263337,1782232988000,-500.0,0.00030136,120]
[426263339,1782232988000,-500.0,0.00030136,120]
[426263336,1782232988000,-500.0,0.00030136,120]
[426263335,1782232988000,-367.98345109,0.00030136,120]
[426263334,1782232988000,-500.0,0.00030136,120]
[426263341,1782232988000,-500.0,0.00030136,120]
[426263330,1782232988000,-150.18520058,0.00030136,120]
[426263331,1782232988000,-500.0,0.00030136,120]
[426263333,1782232988000,-500.0,0.00030136,120]
[426263328,1782232988000,-500.0,0.00030136,120]
[426263329,1782232988000,-500.0,0.00030136,120]
[426263327,1782232988000,-500.0,0.00030136,120]
[426263332,1782232988000,-500.0,0.00030136,120]
[426263355,1782232989000,-500.0,0.00030136,120]
[426263353,1782232989000,-256.6757613,0.00030136,120]
[426263352,1782232989000,-500.0,0.00030136,120]
[426263351,1782232989000,-430.06141069,0.00030136,120]
[426263350,1782232989000,-500.0,0.00030136,120]
[426263349,1782232989000,-500.0,0.00030136,120]
[426263343,1782232989000,-500.0,0.00030136,120]
[426263348,1782232989000,-500.0,0.00030136,120]
[426263346,1782232989000,-354.46560227,0.00030136,120]
[426263344,1782232989000,-500.0,0.00030136,120]
[426263345,1782232989000,-500.0,0.00030136,120]
[426263342,1782232989000,-500.0,0.00030136,120]
[426263354,1782232989000,-500.0,0.00030136,120]
[426263347,1782232989000,-568.07499245,0.00030136,120]
[426263356,1782232989000,-552.02325093,0.00030136,120]
[426263360,1782232989000,-500.0,0.00030136,120]
[426263357,1782232989000,-500.0,0.00030136,120]
[426263370,1782232989000,-502.07779669,0.00030136,120]
[426263369,1782232989000,-500.0,0.00030136,120]
[426263367,1782232989000,-500.0,0.00030136,120]
[426263366,1782232989000,-500.0,0.00030136,120]
[426263368,1782232989000,-500.0,0.00030136,120]
[426263363,1782232989000,-500.0,0.00030136,120]
[426263371,1782232989000,-500.0,0.00030136,120]
[426263362,1782232989000,-500.0,0.00030136,120]